bitfinex/quotes_ETHUSD_20240730
["timestamp","ask_amount","ask_price","bid_price","bid_amount"]
[1722309682295,2.40819,3322.0,3321.7,0.0602033]
[1722309682616,2.40811,3322.1,3321.7,0.0602033]
[1722309682818,2.40811,3322.1,3321.8,35.0]
[1722309683193,2.40826,3321.9,3321.8,35.0]
[1722309683926,5.298157,3321.9,3321.8,35.0]
[1722309684231,5.36652,3321.9,3321.8,35.0]
[1722309684527,8.36652,3321.9,3321.8,35.0]
[1722309684732,9.93932131,3321.9,3321.8,35.0]
[1722309685300,8.36652,3321.9,3321.8,35.0]
[1722309685520,9.36045213,3321.9,3321.8,35.0]
[1722309685833,10.93325344,3321.9,3321.8,35.0]
[1722309685998,9.36045213,3321.9,3321.8,35.0]
[1722309686201,10.93313997,3321.9,3321.8,35.0]
[1722309686404,9.36045213,3321.9,3321.8,35.0]
[1722309688827,9.51535357,3321.9,3321.8,35.0]
[1722309692013,5.56316144,3321.9,3321.8,35.0]
[1722309694720,2.40836,3321.8,3321.5,2.3608]
[1722309695025,0.15497757,3321.7,3321.5,2.3608]
[1722309695254,0.15497757,3321.7,3321.6,35.0]
[1722309695428,3.0,3321.7,3321.6,35.0]
[1722309695614,2.40836,3321.8,3321.6,35.0]
[1722309695815,0.1549818,3321.7,3321.6,35.0]
[1722309696124,3.0,3321.7,3321.6,35.0]
[1722309696425,2.40819,3322.0,3321.6,37.6194898]
[1722309696637,0.15500718,3321.7,3321.6,37.6194898]
[1722309696826,2.40819,3322.0,3321.6,37.6194898]
[1722309697228,0.15509601,3321.9,3321.6,37.6194898]
[1722309698229,2.40833,3321.8,3321.6,35.0]
[1722309698755,0.15519327,3321.7,3321.6,35.0]
[1722309699052,2.40833,3321.8,3321.6,35.0]
[1722309699376,2.40803,3322.3,3321.7,2.3608]
[1722309699522,5.40803,3322.3,3321.8,0.23608]
[1722309699716,5.40803,3322.3,3322.2,35.0]
[1722309701758,2.40803,3322.3,3322.2,35.0]
[1722309702059,3.0,3322.4,3322.2,37.3608]
[1722309702229,2.40783,3322.5,3322.2,38.06396823]
[1722309702934,2.4077,3322.7,3322.2,38.06396823]
[1722309703730,0.15542161,3322.6,3322.2,38.06396823]
[1722309704032,2.40783,3322.5,3322.2,38.06396823]
[1722309704236,2.40783,3322.5,3322.2,37.3608]
[1722309704533,2.56342307,3322.4,3322.2,37.3608]
[1722309705442,2.40797,3322.3,3322.2,37.3608]
[1722309705884,2.40797,3322.3,3322.2,35.0]
[1722309705885,2.56354804,3322.3,3322.2,35.0]
[1722309706038,4.97151804,3322.3,3322.2,35.0]
[1722309706236,5.22787284,3322.3,3322.2,35.0]
[1722309706437,4.97151804,3322.3,3322.2,35.0]
[1722309711172,6.54549674,3322.3,3322.2,35.0]
[1722309711668,4.97151804,3322.3,3322.2,35.0]
[1722309712286,6.5462167,3322.3,3322.2,35.0]
[1722309712579,4.97151804,3322.3,3322.2,35.0]
[1722309714371,6.86115644,3322.3,3322.2,35.0]
[1722309714533,4.97151804,3322.3,3322.2,35.0]
[1722309715492,6.86519727,3322.3,3322.2,35.0]
[1722309716974,4.97151804,3322.3,3322.2,35.0]
[1722309718673,8.33835509,3322.3,3322.2,35.0]
[1722309718861,11.09905364,3322.3,3322.2,35.0]
[1722309719257,14.09905364,3322.3,3322.2,35.0]
[1722309719587,16.54882509,3322.3,3322.2,35.0]
[1722309721356,14.14085509,3322.3,3322.2,35.0]
[1722309721564,11.88835509,3322.3,3322.2,35.0]
[1722309721949,14.50044711,3322.3,3322.2,35.0]
[1722309722150,11.88835509,3322.3,3322.2,35.0]
[1722309722971,14.50057989,3322.3,3322.2,35.0]
[1722309723344,11.88835509,3322.3,3322.2,35.0]
[1722309724083,7.97151804,3322.3,3322.2,35.0]
[1722309724497,2.56354804,3322.3,3322.2,2.4071]
[1722309724996,0.15557804,3322.3,3322.2,37.4071]
[1722309725199,1.73490898,3322.3,3322.2,37.4071]
[1722309725517,1.73490898,3322.3,3322.2,40.45611288]
[1722309725518,0.15557804,3322.3,3322.2,40.45611288]
[1722309725857,1.57933094,3322.5,3322.3,2.2625]
[1722309726075,1.57933094,3322.4,3322.3,2.2625]
[1722309726308,1.57933094,3322.5,3322.3,3.69976247]
[1722309726456,1.57933094,3322.4,3322.3,3.69976247]
[1722309726772,1.57933094,3322.5,3322.3,3.69976247]
[1722309726961,1.57880721,3322.5,3322.3,2.2625]
[1722309727187,1.57880721,3322.5,3322.4,35.0]
[1722309727782,1.67381491,3322.5,3322.4,35.0]
[1722309727973,1.67381491,3322.5,3322.4,38.04901288]
[1722309730112,0.0950077,3322.5,3322.4,38.04901288]
[1722309730276,1.67311172,3322.5,3322.4,38.04901288]
[1722309731129,4.08093172,3322.5,3322.4,38.04901288]
[1722309732328,6.48875172,3322.5,3322.4,35.0]
[1722309732528,4.9106477,3322.5,3322.4,35.0]
[1722309732891,6.80437253,3322.5,3322.4,35.0]
[1722309733438,6.80468714,3322.5,3322.4,35.0]
[1722309733721,5.06653432,3322.5,3322.4,35.0]
[1722309734487,2.65871432,3322.5,3322.4,37.2836]
[1722309735144,2.65871432,3322.5,3322.4,35.0]
[1722309737143,0.25089432,3322.5,3322.4,35.0]
[1722309737434,1.8295425,3322.5,3322.4,35.0]
[1722309737993,0.25089432,3322.5,3322.4,35.0]
[1722309738216,1.8295425,3322.5,3322.4,35.0]
[1722309738429,1.8295425,3322.5,3322.4,38.04901288]
[1722309738615,1.67365588,3322.5,3322.4,38.04901288]
[1722309739018,0.25082248,3322.5,3322.4,38.04901288]
[1722309739809,5.06646248,3322.5,3322.4,35.0]
[1722309740055,6.96103877,3322.5,3322.4,35.0]
[1722309740218,5.06646248,3322.5,3322.4,35.0]
[1722309740412,6.96111785,3322.5,3322.4,35.0]
[1722309740746,5.06646248,3322.5,3322.4,35.0]
[1722309742061,8.20197185,3322.5,3322.4,35.0]
[1722309742233,13.96240311,3322.5,3322.4,35.0]
[1722309742559,16.63129185,3322.5,3322.4,35.0]
[1722309742860,2.40794,3322.4,3320.5,2.2763]
[1722309743012,2.40866,3321.4,3320.6,2.40919]
[1722309743215,4.1436465,3321.3,3320.7,0.468549]
[1722309743862,4.1436465,3321.3,3321.2,35.0]
[1722309744025,2.56416695,3321.3,3321.2,35.0]
[1722309744387,4.97290695,3321.3,3321.2,35.0]
[1722309744597,5.65973519,3321.3,3321.2,35.0]
[1722309744854,11.06847519,3321.3,3321.2,35.0]
[1722309745014,14.08997519,3321.3,3321.2,35.0]
[1722309745650,11.68123519,3321.3,3321.2,35.0]
[1722309745830,8.52290695,3321.3,3321.2,35.0]
[1722309746642,10.41614768,3321.3,3321.2,35.0]
[1722309747263,8.52290695,3321.3,3321.2,35.0]
[1722309747679,7.97290695,3321.3,3321.2,35.0]
[1722309748163,7.97290695,3321.3,3320.8,2.4909]
[1722309748164,2.40889,3321.1,3320.8,2.4909]
[1722309748371,3.98563516,3321.1,3320.8,2.4909]
[1722309748552,0.15460534,3321.0,3320.9,35.0]
[1722309749340,0.15460534,3321.0,3320.9,37.70778228]
[1722309749735,3.0,3321.3,3320.9,37.70778228]
[1722309749947,0.15465611,3321.0,3320.9,37.70778228]
[1722309750489,3.0,3321.3,3320.9,37.70778228]
[1722309750785,0.15465611,3321.0,3320.9,37.70778228]
[1722309751080,0.1546307,3321.0,3320.9,37.70778228]
[1722309751458,5.4087,3321.3,3320.9,37.70778228]
[1722309751652,0.1546307,3321.2,3320.9,37.70778228]
[1722309751852,2.4087,3321.3,3320.9,37.70778228]
[1722309752067,0.1546307,3321.2,3320.9,37.70778228]
[1722309752266,2.4087,3321.3,3320.9,37.70778228]
[1722309752458,2.4089,3321.1,3320.9,37.70778228]
[1722309752676,2.4089,3321.1,3320.9,35.0]
[1722309752884,0.15472377,3321.0,3320.9,35.0]
[1722309753957,2.56363377,3321.0,3320.9,35.0]
[1722309756309,0.15472377,3321.0,3320.9,35.0]
[1722309756688,2.40881,3321.2,3320.9,35.0]
[1722309756917,0.15465187,3321.0,3320.9,35.0]
[1722309757111,4.57552426,3321.5,3320.9,35.0]
[1722309757421,2.40891,3321.0,3320.9,35.0]
[1722309757742,2.56351957,3321.0,3320.9,35.0]
[1722309760083,0.15460957,3321.0,3320.9,35.0]
[1722309760286,2.4088,3321.2,3320.9,35.0]
[1722309760581,0.15458419,3321.1,3320.9,35.0]
[1722309761110,2.56343419,3321.1,3320.9,35.0]
[1722309761423,2.40891,3321.0,3320.9,35.0]
[1722309761771,2.56354917,3321.0,3320.9,35.0]
[1722309763712,0.15463917,3321.0,3320.9,40.89963669]
[1722309763941,0.15463917,3321.0,3320.9,43.33193669]
[1722309764212,12.41,3322.0,3320.9,40.92295669]
[1722309764213,2.40855,3321.5,3320.9,40.92295669]
[1722309764520,0.15461379,3321.4,3321.0,3.10922428]
[1722309764726,0.15461379,3321.4,3321.0,0.0602114]
[1722309764865,7.37,3321.6,3321.3,35.0]
[1722309765065,2.40834,3321.8,3321.3,35.0]
[1722309765066,0.15461379,3321.5,3321.3,35.0]
[1722309765369,2.40834,3321.8,3321.4,0.99984843]
[1722309766704,2.40842,3321.7,3321.3,35.0]
[1722309766874,2.40847,3321.6,3321.3,35.0]
[1722309768270,2.40847,3321.6,3321.0,2.40891]
[1722309768462,2.40847,3321.6,3321.1,0.65250006]
[1722309768683,2.40847,3321.6,3321.5,35.0]
[1722309772686,2.40834,3321.8,3321.5,35.0]
[1722309772895,2.40841,3321.7,3321.5,35.0]
[1722309773897,2.40847,3321.6,3321.5,35.0]
[1722309774798,4.97184569,3321.6,3321.5,35.0]
[1722309775771,8.52184569,3321.6,3321.5,35.0]
[1722309775995,9.80388072,3321.6,3321.5,35.0]
[1722309776194,11.6940153,3321.6,3321.5,35.0]
[1722309776393,11.6440153,3321.6,3321.5,35.0]
[1722309776804,9.75388072,3321.6,3321.5,35.0]
[1722309777036,10.04745628,3321.6,3321.5,35.0]
[1722309777212,7.08898628,3321.6,3321.5,35.0]
[1722309777519,5.51337569,3321.6,3321.5,35.0]
[1722309777733,2.51337569,3321.6,3321.5,35.0]
[1722309778521,0.15490569,3321.6,3321.5,35.0]
[1722309778729,0.15490569,3321.6,3321.5,38.04901288]
[1722309778934,3.98407461,3322.1,3321.5,38.04901288]
[1722309779072,1.57592461,3322.1,3321.6,0.06020504]
[1722309779422,1.57592461,3322.1,3321.7,3.04901288]
[1722309779597,1.57601045,3322.1,3321.7,3.04901288]
[1722309779804,2.4082,3322.0,3321.7,3.04901288]
[1722309780392,2.40826,3321.9,3321.7,3.04901288]
[1722309780584,6.98413045,3322.1,3321.7,3.04901288]
[1722309780941,2.40812,3322.1,3321.8,0.31092179]
[1722309781087,2.40803,3322.3,3321.9,2.4379]
[1722309781438,6.98410332,3322.3,3322.0,35.0]
[1722309781637,1.57607332,3322.2,3322.0,35.0]
[1722309781942,5.40803,3322.3,3322.0,35.0]
[1722309782232,4.57607332,3322.3,3322.0,35.0]
[1722309782404,2.40811,3322.1,3322.0,35.0]
[1722309782604,6.39229332,3322.1,3322.0,35.0]
[1722309782980,6.39262094,3322.1,3322.0,35.0]
[1722309783199,4.81622,3322.1,3322.0,35.0]
[1722309783638,6.3369708,3322.1,3322.0,35.0]
[1722309783832,11.22908193,3322.1,3322.0,35.0]
[1722309784287,9.3369708,3322.1,3322.0,35.0]
[1722309784903,11.22982815,3322.1,3322.0,35.0]
[1722309785343,9.3369708,3322.1,3322.0,35.0]
[1722309786095,11.23033304,3322.1,3322.0,35.0]
[1722309786303,9.3369708,3322.1,3322.0,35.0]
[1722309786705,2.40841,3321.7,3321.5,2.2812]
[1722309786907,3.98645606,3321.7,3321.5,2.2812]
[1722309787218,2.40841,3321.7,3321.6,35.0]
[1722309788082,1.57828129,3321.7,3321.6,35.0]
[1722309788287,1.89365527,3322.0,3321.6,38.04901288]
[1722309788288,3.98662129,3321.8,3321.6,38.04901288]
[1722309788483,3.98662129,3321.8,3321.6,35.0]
[1722309788721,2.4084,3321.7,3321.6,35.0]
[1722309789314,3.98668129,3321.7,3321.6,35.0]
[1722309789984,2.4084,3321.7,3321.6,35.0]
[1722309790633,1.57837911,3321.7,3321.6,35.0]
[1722309790843,1.57837911,3321.9,3321.6,38.04901288]
[1722309791002,3.98677911,3321.7,3321.6,35.0]
[1722309792535,3.98700284,3321.7,3321.6,35.0]
[1722309792917,6.39540284,3321.7,3321.6,35.0]
[1722309793223,5.45634028,3321.7,3321.6,35.0]
[1722309793428,11.41474028,3321.7,3321.6,35.0]
[1722309793814,11.56963329,3321.7,3321.6,35.0]
[1722309794124,13.7800674,3321.7,3321.6,35.0]
[1722309794426,11.56963329,3321.7,3321.6,35.0]
[1722309795658,9.16123329,3321.7,3321.6,35.0]
[1722309795986,8.52169301,3321.7,3321.6,35.0]
[1722309796473,7.97169301,3321.7,3321.6,35.0]
[1722309796954,3.15489301,3321.7,3321.6,35.0]
[1722309797116,1.73373519,3321.7,3321.6,35.0]
[1722309797518,1.73363627,3321.7,3321.6,35.0]
[1722309797737,1.73364562,3321.7,3321.6,35.0]
[1722309797951,2.56329301,3321.7,3321.6,35.0]
[1722309798764,4.97169301,3321.7,3321.6,35.0]
[1722309798967,5.52169301,3321.7,3321.6,35.0]
[1722309799330,9.29488768,3321.7,3321.6,35.0]
[1722309800720,8.52169301,3321.7,3321.6,35.0]
[1722309800919,7.97169301,3321.7,3321.6,35.0]
[1722309801115,8.52169301,3321.7,3321.6,35.0]
[1722309802973,10.73243095,3321.7,3321.6,35.0]
[1722309803142,13.14083095,3321.7,3321.6,35.0]
[1722309803317,14.45491405,3321.7,3321.6,35.0]
[1722309803679,12.24417611,3321.7,3321.6,35.0]
[1722309805141,14.45553704,3321.7,3321.6,35.0]
[1722309805467,12.24417611,3321.7,3321.6,35.0]
[1722309808273,14.65257611,3321.7,3321.6,35.0]
[1722309808491,2.40898,3320.9,3320.8,2.3589]
[1722309808777,2.56338223,3320.9,3320.8,2.3589]
[1722309809079,4.97236223,3320.9,3320.8,37.3589]
[1722309810170,2.56338223,3320.9,3320.8,37.3589]
[1722309810357,4.14279964,3320.9,3320.8,40.40791288]
[1722309810756,1.73381964,3320.9,3320.8,40.40791288]
[1722309810977,0.15440223,3320.9,3320.8,40.40791288]
[1722309811661,1.57941741,3321.0,3320.8,40.40791288]
[1722309811852,1.57941741,3321.0,3320.9,3.04901288]
[1722309812048,3.98825741,3321.1,3320.8,2.3589]
[1722309812263,2.40891,3321.0,3320.9,35.0]
[1722309812565,1.57941741,3321.1,3320.9,38.04901288]
[1722309812863,3.98826741,3321.1,3320.9,3.04901288]
[1722309813085,3.98826741,3321.1,3320.8,2.3589]
[1722309813366,3.98826741,3321.1,3321.0,35.0]
[1722309813939,2.40885,3321.1,3321.0,35.0]
[1722309814186,3.98807726,3321.1,3321.0,35.0]
[1722309814563,1.57922726,3321.1,3321.0,38.04901288]
[1722309814785,1.57922726,3321.3,3321.0,40.50971288]
[1722309815104,1.57922726,3321.3,3321.0,5.50971288]
[1722309815277,3.98785726,3321.4,3321.0,2.4607]
[1722309815478,1.57922726,3321.3,3321.0,2.4607]
[1722309815878,1.57922726,3321.3,3321.2,35.0]
[1722309816698,3.98791726,3321.3,3321.2,35.0]
[1722309817200,2.40869,3321.3,3321.2,35.0]
[1722309817398,6.39641361,3321.3,3321.2,35.0]
[1722309817562,7.26222034,3321.3,3321.2,35.0]
[1722309817769,9.23929203,3321.3,3321.2,35.0]
[1722309818293,7.77607,3321.3,3321.2,35.0]
[1722309819801,7.2622564,3321.3,3321.2,35.0]
[1722309820096,2.40869,3321.3,3321.2,35.0]
[1722309821402,2.40869,3321.3,3321.2,37.3287]
[1722309821829,3.98751443,3321.3,3321.2,37.3287]
[1722309822198,2.40869,3321.3,3321.2,37.3287]
[1722309822635,7.30319566,3321.5,3321.2,37.3287]
[1722309822793,1.57891579,3321.3,3321.2,40.37771288]
[1722309823401,2.40869,3321.3,3321.2,37.3287]
[1722309823802,4.14211454,3321.3,3321.2,37.3287]
[1722309824226,2.56319907,3321.3,3321.2,37.3287]
[1722309824531,4.14210327,3321.3,3321.2,37.3287]
[1722309825131,1.73341327,3321.3,3321.2,37.3287]
[1722309826822,0.15450907,3321.3,3321.2,37.3287]
[1722309827156,1.73364432,3321.3,3321.2,37.3287]
[1722309828195,0.15450907,3321.3,3321.2,37.3287]
[1722309832229,0.15450907,3321.3,3321.2,40.37771288]
[1722309832432,1.73464708,3321.3,3321.2,40.37771288]
[1722309832638,1.58013801,3321.3,3321.2,40.37771288]
[1722309832808,1.73469787,3321.3,3321.2,40.37771288]
[1722309833234,1.73469787,3321.3,3321.2,41.48871288]
[1722309833436,0.15455986,3321.3,3321.2,41.48871288]
[1722309833637,1.58017424,3321.3,3321.2,41.48871288]
[1722309833943,0.15458523,3321.3,3321.2,41.48871288]
[1722309834140,1.73475947,3321.3,3321.2,41.48871288]
[1722309834664,0.15458523,3321.3,3321.2,41.48871288]
[1722309835437,1.58017424,3321.7,3321.2,41.48871288]
[1722309835652,1.58017424,3321.6,3321.5,1.111]
[1722309835925,1.58017424,3321.6,3321.5,5.89295]
[1722309836134,4.62030394,3322.2,3321.5,5.89295]
[1722309836135,1.58017424,3322.0,3321.8,2.3734]
[1722309836431,1.89620909,3322.2,3321.9,35.478175]
[1722309836432,1.58017424,3322.2,3321.9,35.478175]
[1722309836649,0.0950077,3322.5,3322.1,3.51911]
[1722309836851,1.57932771,3322.4,3322.1,4.78151]
[1722309837038,1.67433541,3322.5,3322.4,1.111]
[1722309837248,0.0950077,3322.5,3322.4,36.111]
[1722309837445,1.67433541,3322.5,3322.4,36.111]
[1722309837760,0.0950077,3322.5,3322.4,36.111]
[1722309838263,0.0950077,3322.5,3322.4,39.16001288]
[1722309838634,0.23960371,3322.5,3322.4,39.16001288]
[1722309838842,0.0950077,3322.5,3322.4,39.16001288]
[1722309839135,0.0950077,3322.5,3322.4,38.04901288]
[1722309839345,0.23960371,3322.5,3322.4,38.04901288]
[1722309841434,0.0950077,3322.5,3322.4,38.04901288]
[1722309843640,0.23960371,3322.5,3322.4,38.04901288]
[1722309843837,0.0950077,3322.5,3322.4,38.04901288]
[1722309844037,0.23960371,3322.5,3322.4,38.04901288]
[1722309848641,0.23960371,3322.5,3322.4,42.83490288]
[1722309848841,0.0950077,3322.5,3322.4,42.83490288]
[1722309851569,0.0950077,3322.5,3322.4,45.24279288]
[1722309851877,0.0950077,3322.5,3322.4,47.65068288]
[1722309852070,0.0950077,3322.5,3322.4,50.65068288]
[1722309854047,0.0950077,3322.5,3322.4,48.24279288]
[1722309854472,0.0950077,3322.5,3322.4,45.83490288]
[1722309854835,0.0950077,3322.5,3322.4,48.24279288]
[1722309857382,0.0950077,3322.5,3322.4,50.65068288]
[1722309857672,0.0950077,3322.5,3322.4,48.24279288]
[1722309858685,0.0950077,3322.5,3322.4,45.83490288]
[1722309858991,0.0950077,3322.5,3322.4,38.04901288]
[1722309862449,0.0950077,3322.5,3322.4,40.45690288]
[1722309863171,0.0950077,3322.5,3322.4,45.29669288]
[1722309865397,0.0950077,3322.5,3322.4,42.88880288]
[1722309867372,0.0950077,3322.5,3322.4,45.29669288]
[1722309870093,0.0950077,3322.5,3322.4,47.70458288]
[1722309871099,0.0950077,3322.5,3322.4,49.20458288]
[1722309871410,0.0950077,3322.5,3322.4,52.20458288]
[1722309871709,7.37,3323.7,3323.3,2.4072]
[1722309871895,2.40681,3323.9,3323.4,0.30089203]
[1722309872417,0.14586012,3323.8,3323.4,0.30089203]
[1722309872583,0.14586012,3323.8,3323.4,0.06017203]
[1722309872969,2.40673,3324.0,3323.7,35.0]
[1722309873167,0.14586012,3323.9,3323.7,35.0]
[1722309873417,0.14586012,3323.9,3323.3,2.4072]
[1722309873566,0.14586012,3323.9,3323.4,0.06017013]
[1722309873769,2.55267012,3323.9,3323.4,0.06017013]
[1722309873971,2.55267012,3323.9,3323.8,35.0]
[1722309874969,3.28835413,3323.9,3323.8,35.0]
[1722309877715,0.14586012,3323.9,3323.8,35.0]
[1722309878277,9.7766,3324.2,3323.8,35.0]
[1722309878478,0.14624888,3323.9,3323.8,35.0]
[1722309878678,9.7766,3324.2,3323.8,35.0]
[1722309879092,0.14624888,3324.1,3323.8,35.0]
[1722309881715,0.14624888,3324.1,3323.9,0.06016371]
[1722309882778,2.40646,3324.4,3323.9,0.06016371]
[1722309882978,2.55288448,3324.3,3323.9,0.06016371]
[1722309883180,2.4065,3324.2,3323.9,0.06016371]
[1722309883415,2.4065,3324.2,3323.8,35.0]
[1722309883591,0.14640095,3324.1,3323.8,35.0]
[1722309883793,2.55307095,3324.1,3323.9,0.06016376]
[1722309884045,2.40674,3324.0,3323.8,35.0]
[1722309884390,2.40674,3324.0,3323.3,4.8101]
[1722309884391,2.40674,3324.0,3323.4,2.40717]
[1722309884715,2.40681,3323.9,3323.3,4.81014]
[1722309884916,2.55320248,3323.9,3323.8,35.0]
[1722309885313,0.14639248,3323.9,3323.8,35.0]
[1722309885680,2.55320248,3323.9,3323.8,35.0]
[1722309886396,4.96001248,3323.9,3323.8,35.0]
[1722309887825,2.55320248,3323.9,3323.8,35.0]
[1722309893691,4.12918829,3323.9,3323.8,35.0]
[1722309895310,2.55320248,3323.9,3323.8,35.0]
[1722309898233,4.130695,3323.9,3323.8,35.0]
[1722309899195,1.723885,3323.9,3323.8,35.0]
[1722309899401,0.14639248,3323.9,3323.8,38.04901288]
[1722309899881,0.14639248,3323.9,3323.8,35.0]
[1722309902239,2.40673,3324.0,3323.8,35.0]
[1722309902559,0.14645164,3323.9,3323.8,35.0]
[1722309903411,4.1307776,3323.9,3323.8,35.0]
[1722309903611,2.55326164,3323.9,3323.8,35.0]
[1722309904026,1.72399772,3323.9,3323.8,35.0]
[1722309904231,2.55326164,3323.9,3323.8,35.0]
[1722309904633,0.14645164,3323.9,3323.8,35.0]
[1722309904814,1.57755103,3323.9,3323.8,35.0]
[1722309905013,1.72403224,3323.9,3323.8,35.0]
[1722309905502,0.14648121,3323.9,3323.8,35.0]
[1722309905717,0.14648121,3323.9,3323.8,37.2828]
[1722309906014,1.57776096,3324.3,3323.9,2.4068]
[1722309906218,1.57776096,3324.3,3323.9,2.46696271]
[1722309906617,1.57776096,3324.3,3324.2,35.0]
[1722309907215,1.57776096,3324.3,3324.2,36.109]
[1722309907931,2.40646,3324.4,3324.2,35.0]
[1722309908138,1.57783435,3324.3,3324.2,35.0]
[1722309908310,1.5777728,3324.3,3324.2,35.0]
[1722309908516,1.5777728,3324.3,3324.2,36.109]
[1722309908848,1.57796051,3324.3,3324.2,36.109]
[1722309909319,1.57796051,3324.3,3324.2,35.0]
[1722309909513,2.40638,3324.5,3324.2,35.0]
[1722309910238,2.40645,3324.4,3324.2,35.0]
[1722309910424,1.57797781,3324.3,3324.2,35.0]
[1722309910618,1.89355262,3324.5,3324.2,35.0]
[1722309911044,4.29995262,3324.5,3324.2,35.0]
[1722309911257,1.89355262,3324.6,3324.5,4.81274]
[1722309911461,2.474,3325.6,3324.5,4.81274]
[1722309911462,1.57813158,3325.1,3324.8,2.40609]
[1722309911665,1.58592431,3325.3,3324.9,0.06014423]
[1722309911961,0.00779273,3325.3,3324.9,35.06014423]
[1722309912155,1.5854226,3325.3,3324.9,35.0]
[1722309912324,1.57762987,3325.2,3324.9,35.0]
[1722309912551,4.29903584,3325.2,3324.9,35.0]
[1722309912734,1.57910791,3325.0,3324.9,35.0]
[1722309913019,0.13917935,3325.0,3324.9,35.0]
[1722309913229,0.00180357,3325.0,3324.9,35.0]
[1722309913554,0.00180357,3325.0,3324.9,38.04901288]
[1722309914226,0.13917935,3325.0,3324.9,38.04901288]
[1722309915232,0.00180357,3325.0,3324.9,40.45509288]
[1722309915662,0.00180357,3325.0,3324.9,38.04901288]
[1722309917342,0.00180357,3325.0,3324.9,35.0]
[1722309918361,0.13516299,3325.0,3324.9,35.0]
[1722309918557,0.00180357,3325.0,3324.9,35.0]
[1722309918762,0.13512909,3325.0,3324.9,35.0]
[1722309919347,0.00180357,3325.0,3324.9,35.0]
[1722309919662,0.00180357,3325.0,3324.9,40.50521288]
[1722309920158,0.00180357,3325.0,3324.9,38.04901288]
[1722309921671,0.13513758,3325.0,3324.9,38.04901288]
[1722309921829,0.00180357,3325.0,3324.9,38.04901288]
[1722309922028,0.13513758,3325.0,3324.9,42.75659288]
[1722309922230,0.00180357,3325.0,3324.9,42.75659288]
[1722309922454,0.00180357,3325.0,3324.9,40.35051288]
[1722309922857,0.00180357,3325.0,3324.9,38.04901288]
[1722309923043,2.54111792,3325.0,3324.9,35.0]
[1722309923277,0.13510792,3325.0,3324.9,35.0]
[1722309925235,2.54111792,3325.0,3324.9,35.0]
[1722309925468,0.13510792,3325.0,3324.9,35.0]
[1722309925835,2.54111792,3325.0,3324.9,35.0]
[1722309927973,4.94712792,3325.0,3324.9,35.0]
[1722309930129,8.2350789,3325.0,3324.9,35.0]
[1722309930289,12.22066073,3325.0,3324.9,35.0]
[1722309930611,10.6473789,3325.0,3324.9,35.0]
[1722309931414,12.53569641,3325.0,3324.9,35.0]
[1722309932321,2.40686,3323.9,3323.4,2.4119]
[1722309932623,2.40663,3324.2,3323.5,0.06016995]
[1722309932771,0.1327834,3323.8,3323.5,0.06016995]
[1722309932963,9.77652,3324.3,3323.7,2.4119]
[1722309933197,7.37,3324.3,3324.2,35.0]
[1722309933364,16.3901976,3324.7,3324.2,35.0]
[1722309933365,2.40645,3324.4,3324.2,35.0]
[1722309933764,2.40652,3324.3,3324.2,35.0]
[1722309939611,4.81304,3324.3,3324.2,35.0]
[1722309940372,2.40652,3324.3,3324.2,35.0]
[1722309943704,2.53892767,3324.3,3324.2,35.0]
[1722309946307,4.94544767,3324.3,3324.2,35.0]
[1722309946524,5.5974927,3324.3,3324.2,35.0]
[1722309946726,8.0040127,3324.3,3324.2,35.0]
[1722309949837,9.8941933,3324.3,3324.2,35.0]
[1722309950010,9.89417777,3324.3,3324.2,35.0]
[1722309951822,12.22757777,3324.3,3324.2,35.0]
[1722309952021,13.2939327,3324.3,3324.2,35.0]
[1722309953715,2.40731,3323.2,3323.1,2.4835]
[1722309954142,2.53936589,3323.2,3323.1,2.4835]
[1722309954349,2.53936589,3323.2,3322.5,2.4952]
[1722309954645,2.40739,3323.1,3322.5,2.4952]
[1722309954947,0.13172108,3323.0,3322.5,2.4952]
[1722309955133,0.13172108,3323.0,3322.9,35.0]
[1722309956522,2.40732,3323.2,3322.9,35.0]
[1722309956724,0.13167445,3323.0,3322.6,0.490309]
[1722309956925,2.40732,3323.2,3322.6,0.490309]
[1722309957150,0.13167445,3322.9,3322.6,0.490309]
[1722309957350,2.40732,3323.2,3322.5,4.90301]
[1722309957351,2.40732,3323.2,3322.7,0.5393319]
[1722309957968,0.13167445,3323.1,3322.7,0.5393319]
[1722309958166,0.13167445,3323.1,3323.0,35.0]
[1722309958671,2.40732,3323.2,3323.0,35.0]
[1722309958871,2.40732,3323.2,3322.7,0.5393319]
[1722309959058,0.13167445,3323.1,3322.7,0.5393319]
[1722309959260,0.13167445,3323.1,3323.0,35.0]
[1722309959458,2.40732,3323.2,3323.0,35.0]
[1722309959654,2.40732,3323.2,3322.7,0.5393319]
[1722309959856,0.13167445,3323.1,3322.7,0.5393319]
[1722309960262,0.13167445,3323.1,3323.0,35.0]
[1722309960436,2.40732,3323.2,3323.0,35.0]
[1722309960636,2.40732,3323.2,3322.7,0.5393319]
[1722309960855,0.13167445,3323.1,3322.7,0.5393319]
[1722309961063,0.13167445,3323.1,3323.0,35.0]
[1722309961368,2.40725,3323.3,3323.0,35.0]
[1722309961537,2.40725,3323.3,3322.7,0.5393319]
[1722309961738,0.13165751,3323.2,3322.8,0.29470719]
[1722309962167,2.40725,3323.3,3323.1,35.0]
[1722309962345,2.40731,3323.2,3323.1,35.0]
[1722309962554,2.4074,3323.1,3322.8,0.29470719]
[1722309962748,2.4074,3323.1,3322.7,0.5393319]
[1722309962972,2.4074,3323.1,3323.0,35.0]
[1722309963336,4.8148,3323.1,3323.0,35.0]
[1722309966098,9.6934,3323.1,3323.0,35.0]
[1722309969399,4.8786,3323.1,3322.2,2.4444]
[1722309969605,0.64517268,3323.0,3322.2,2.4444]
[1722309969809,2.40781,3322.6,3322.2,2.4444]
[1722309970103,2.40783,3322.5,3322.2,2.4444]